Workbook

Sheet AER Under recovery
C1: Under recovery for the 2015-2020 RCP | G1: AER Final Decision
C2: [Under recovery]
C3: Used to calculate the under/over recovery for the 2015-2020 RCP
I9: 2016 | J9: 2017 | K9: 2018 | L9: 2019 | M9: 2020
I10: 2015-16 | J10: 2016-17 | K10: 2017-18 | L10: 2018-19 | M10: 2019-20 | Q10: =I10 -> 2015-16 | R10: =J10 -> 2016-17 | S10: 2017-18 | T10: 2018-19 | U10: 2019-20
C11: Present value, nominal WACC
C12: Nominal vanilla WACC | I12: 0.06168 | J12: 0.06185640176 | K12: 0.06175398059 | L12: 0.06129022808 | M12: 0.06085678276
C13: Forecast Inflation | I13: 0.025 | J13: 0.025 | K13: 0.025 | L13: 0.025 | M13: 0.025 | P13: Cumulative Forecast CPI | Q13: =I13+1 -> 1.025 | R13: =Q13*(1+J13) -> 1.050625 | S13: =R13*(1+K13) -> 1.076890625 | T13: 1.103812891 | U13: 1.131408213
C14: Ex ante real vanilla WACC | I14: 0.03578536585 | J14: 0.03595746513 | K14: 0.03585754204 | L14: 0.03540510057 | M14: 0.03498222709
C15: Actual inflation (Dec on Dec) | I15: 0.01688555347 | J15: 0.0147601476 | K15: 0.01909090909 | L15: 0.0178412132 | M15: 0.01840490798 | P15: Cumulative Actual CPI | Q15: =I15+1 -> 1.016885553 | R15: =Q15*(1+J15) -> 1.031894934 | S15: =R15*(1+K15) -> 1.051594747 | T15: 1.070356473 | U15: 1.090056285
C16: Ex post nominal vanilla WACC | I16: =(1+I14)*(1+I15)-1 -> 0.05327517503 | J16: =(1+J14)*(1+J15)-1 -> 0.05124835022 | K16: 0.05563300421 | L16: 0.05387798372 | M16: 0.05403097973
A18: Over/Under recovery for the 2015-20 Regulatory Control Period (RCP)
C20: Capital building bolck costs ESCoSA PLAB ($m) - recovered through tariffs for the 2015-20 RCP
C21: PTRM calculations are based on End of Year Cashflows | I21: =I$10 -> 2015-16 | J21: 2016-17 | K21: 2017-18 | L21: 2018-19
C22: Return on asset | I22: 2.254580986 | J22: 2.176758423 | K22: 2.294876595 | L22: 2.524356674
C23: Return of asset | I23: 4.158443505 | J23: 1.064472943 | K23: 1.174924829 | L23: 1.317257259
C24: O&M | I24: 0.01820881191 | J24: 0.01753015335 | K24: 0.01851204999 | L24: 0.02051727194
C25: Carry-over amounts | I25: 0 | J25: 0 | K25: 0 | L25: 0
C26: Tax payable | I26: 0.8515886265 | J26: 0.1465953218 | K26: 0 | L26: 0.3900974661
C27: Total building block revenue | D27: With Forecast CPI | I27: =SUM(I22:I26) -> 7.28282193 | J27: =SUM(J22:J26) -> 3.405356841 | K27: 3.488313475 | L27: 4.252228671
C30: Capital building bolck costs AER PLAB ($m) - used to determine over or under recovery
C31: PTRM calculations are based on End of Year Cashflows | I31: =I$10 -> 2015-16 | J31: 2016-17 | K31: 2017-18 | L31: 2018-19
C32: Return on asset | I32: 2.35646376 | J32: 2.373910991 | K32: 2.383881152 | L32: 2.616852618
C33: Return of asset | I33: 2.622977304 | J33: 2.81045865 | K33: 1.107054575 | L33: 1.246894289
C34: O&M | I34: 0.01903165405 | J34: 0.01911788798 | K34: 0.01923002185 | L34: 0.02126905336
C35: Carry-over amounts | I35: 0 | J35: 0 | K35: 0 | L35: 0
C36: Tax payable | I36: 0.5274785972 | J36: 0.8104866814 | K36: 0.1209568652 | L36: 0.4183314145
C37: Total building block revenue | D37: With Forecast CPI | I37: =SUM(I32:I36) -> 5.525951315 | J37: =SUM(J32:J36) -> 6.01397421 | K37: 3.631122614 | L37: 4.303347375
C40: 2015-20 RCP
C41: Over/under-recover ($m) | D41: End of Year Cashflows | I41: =I37-I27 -> -1.756870615 | J41: =J37-J27 -> 2.608617369 | K41: 0.142809139 | L41: 0.05111870465
C43: Cumulative - nominal WACC ($m) | D43: End of Year Cashflows | I43: =I41 -> -1.756870615 | J43: =I43*(1+J$16)+J41 -> 0.7617100333 | K43: =J43*(1+K$16)+K41 -> 0.9468953898 | L43: =K43*(1+L$16)+L41 -> 1.049030909 | M43: =L43*(1+M$16) -> 1.105711077 | N43: Under recovery

Sheet SAPN Under recovery
C1: Under recovery for the 2015-2020 RCP | G1: SAPN Revised Proposal
C2: [Under recovery]
C3: Used to calculate the under/over recovery for the 2015-2020 RCP
C9: 2010 | D9: 2011 | E9: 2012 | F9: 2013 | G9: 2014 | H9: 2015 | I9: 2016 | J9: 2017 | K9: 2018 | L9: 2019 | M9: 2020
D10: 2010-11 | E10: 2011-12 | F10: 2012-13 | G10: 2013-14 | H10: 2014-15 | I10: 2015-16 | J10: 2016-17 | K10: 2017-18 | L10: 2018-19 | M10: 2019-20
C11: Present value, nominal WACC
C12: Nominal vanilla WACC | D12: 0.09762 | E12: 0.09762 | F12: 0.09762 | G12: 0.09762 | H12: 0.09762 | I12: 0.06168 | J12: 0.06185640176 | K12: 0.06175398059 | L12: 0.06129022808 | M12: 0.06085678276
C13: Forecast Inflation | D13: 0.0252 | E13: 0.0252 | F13: 0.0252 | G13: 0.0252 | H13: 0.0252 | I13: 0.025 | J13: 0.025 | K13: 0.025 | L13: 0.025 | M13: 0.025
C14: Ex ante real vanilla WACC | D14: 0.07063987515 | E14: 0.07063987515 | F14: 0.07063987515 | G14: 0.07063987515 | H14: 0.07063987515 | I14: 0.03578536585 | J14: 0.03595746513 | K14: 0.03585754204 | L14: 0.03540510057 | M14: 0.03498222709
C15: Actual inflation | D15: 0.03256302521 | E15: 0.01627670397 | F15: 0.02502502503 | G15: 0.029296875 | H15: 0.01328273245 | I15: 0.01310861423 | J15: 0.02125693161 | K15: 0.01900452489 | L15: 0.01332149201 | M15: 0
C16: Ex post nominal vanilla WACC | D16: 0.1055031484 | E16: 0.08806636345 | F16: 0.09743266481 | G16: 0.1020062777 | H16: 0.08486089816 | I16: 0.04936307664 | J16: 0.05797874211 | K16: 0.05554352248 | L16: 0.04919824134 | M16: 0.03498222709
A18: Over/Under recovery for the 2015-20 Regulatory Control Period (RCP)
C20: Capital building bolck costs ESCoSA PLAB ($m) - recovered through tariffs for the 2015-20 RCP
D21: =D$10 -> 2010-11 | E21: =E$10 -> 2011-12 | F21: 2012-13 | G21: 2013-14 | H21: 2014-15 | I21: 2015-16 | J21: 2016-17 | K21: 2017-18 | L21: 2018-19
C22: Return on asset | I22: 2.254580986 | J22: 2.176758423 | K22: 2.294876595 | L22: 2.524356674
C23: Return of asset | I23: 4.158443505 | J23: 1.064472943 | K23: 1.174924829 | L23: 1.317257259
C24: O&M | I24: 0.01820881191 | J24: 0.01753015335 | K24: 0.01851204999 | L24: 0.02051727194
C25: Carry-over amounts | I25: 0 | J25: 0 | K25: 0 | L25: 0
C26: Tax payable | I26: 0.8515886265 | J26: 0.1465953218 | K26: 0 | L26: 0.3900974661
C27: Total building block revenue | I27: =SUM(I22:I26) -> 7.28282193 | J27: =SUM(J22:J26) -> 3.405356841 | K27: 3.488313475 | L27: 4.252228671
C30: Capital building bolck costs AER PLAB ($m) - used to determine over or under recovery
D31: =D$10 -> 2010-11 | E31: =E$10 -> 2011-12 | F31: 2012-13 | G31: 2013-14 | H31: 2014-15 | I31: 2015-16 | J31: 2016-17 | K31: 2017-18 | L31: 2018-19
C32: Return on asset | I32: 2.35646376 | J32: 2.373910991 | K32: 2.383881152 | L32: 2.616852618
C33: Return of asset | I33: 2.622977304 | J33: 2.81045865 | K33: 1.107054575 | L33: 1.246894289
C34: O&M | I34: 0.01903165405 | J34: 0.01911788798 | K34: 0.01923002185 | L34: 0.02126905336
C35: Carry-over amounts | I35: 0 | J35: 0 | K35: 0 | L35: 0
C36: Tax payable | I36: 0.5274785972 | J36: 0.8104866814 | K36: 0.1209568652 | L36: 0.4183314145
C37: Total building block revenue | I37: =SUM(I32:I36) -> 5.525951315 | J37: =SUM(J32:J36) -> 6.01397421 | K37: 3.631122614 | L37: 4.303347375
C40: 2015-20 RCP
C41: Over/under-recover ($m) | I41: =I37-I27 -> -1.756870615 | J41: =J37-J27 -> 2.608617369 | K41: 0.142809139 | L41: 0.05111870465
C43: Cumulative - nominal WACC ($m) | I43: =I41*(1+I$16)^0.5 -> -1.799710575 | J43: =I43*(1+J$16)+J41*(1+J$16)^0.5 -> 0.7791185655 | K43: =J43*(1+K$16)+K41*(1+K$16)^0.5 -> 0.9691151615 | L43: =K43*(1+L$16)+L41*(1+L$16)^0.5 -> 1.069155006 | M43: =L43*(1+M$16)+M41*(1+M$16)^0.5 -> 1.106556429 | N43: =M43 -> 1.106556429 | P43: Under recovery
